bitfinex-derivatives/quotes_SOLF0:USTF0_20260129
["timestamp","ask_amount","ask_price","bid_price","bid_amount"]
[1769662392484,3.57471748,123.5,123.46,2.52183936]
[1769662394787,3.57471748,123.5,123.47,2.52183936]
[1769662396289,3.57471748,123.5,123.48,2.52183936]
[1769662400190,3.57471748,123.5,123.47,2.52183936]
[1769662408497,7.59682165,123.51,123.47,2.52183936]
[1769662408998,11.17153913,123.52,123.47,2.52183936]
[1769662409400,3.57471748,123.51,123.47,2.52183936]
[1769662409594,3.57471748,123.51,123.47,9.82213936]
[1769662409792,3.57471748,123.51,123.49,2.52183936]
[1769662409995,3.57471748,123.51,123.48,2.52183936]
[1769662410702,3.57471748,123.51,123.47,9.82213936]
[1769662410902,11.17153913,123.51,123.47,9.82213936]
[1769662411799,3.57471748,123.51,123.47,9.82213936]
[1769662416311,3.57471748,123.51,123.48,2.52183936]
[1769662424808,7.59682165,123.52,123.49,2.52129433]
[1769662425008,10.12688401,123.54,123.51,2.52183936]
[1769662425009,7.59692749,123.53,123.51,2.52183936]
[1769662425214,139.53619649,123.55,123.51,2.52183936]
[1769662425413,146.83199649,123.55,123.51,2.52183936]
[1769662425613,10.12688401,123.54,123.5,2.52183936]
[1769662425813,146.83199649,123.55,123.5,2.52183936]
[1769662427115,10.12688401,123.54,123.5,2.52183936]
[1769662427312,3.2206686,123.54,123.5,2.52183936]
[1769662428522,3.2206686,123.54,123.49,5.04313369]
[1769662430216,3.2206686,123.54,123.44,113.5876]
[1769662430217,3.2206686,123.53,123.47,13.33583123]
[1769662431822,3.2206686,123.52,123.47,3.51359187]
[1769662432020,3.2206686,123.52,123.45,6.03543123]
[1769662433417,3.2206686,123.51,123.45,13.33703123]
[1769662433619,3.2206686,123.51,123.46,2.52183936]
[1769662434219,3.2206686,123.51,123.46,6.03543123]
[1769662435119,3.2206686,123.51,123.46,3.51359187]
[1769662435320,3.2206686,123.51,123.46,6.03543123]
[1769662437127,3.41441295,123.5,123.44,5.84193341]
[1769662439124,3.41441295,123.5,123.45,3.32009405]
[1769662441436,3.41441295,123.5,123.43,3.32009405]
[1769662441728,3.41441295,123.5,123.43,5.84193341]
[1769662441932,3.41441295,123.49,123.43,3.32009405]
[1769662442533,3.41441295,123.47,123.43,3.32009405]
[1769662443431,10.71491295,123.47,123.41,10.62409405]
[1769662443633,10.71491295,123.47,123.42,2.52183936]
[1769662444134,3.41441295,123.46,123.41,3.32009405]
[1769662444533,3.41441295,123.46,123.42,2.52183936]
[1769662445347,3.41441295,123.45,123.39,3.32009405]
[1769662445533,3.41441295,123.45,123.41,2.52183936]
[1769662449642,3.41441295,123.45,123.42,2.5241334]
[1769662452547,7.3011,123.46,123.42,2.5241334]
[1769662454647,3.41441295,123.45,123.42,2.5241334]
[1769662456647,123.65628401,123.51,123.44,2.5241334]
[1769662456648,113.5294,123.51,123.44,2.5241334]
[1769662456845,137.8598,123.52,123.46,2.5241334]
[1769662457248,137.8598,123.52,123.46,3.34e-05]
[1769662458453,137.8454,123.54,123.45,3.32009405]
[1769662458649,1.75921492,123.53,123.45,3.32009405]
[1769662458950,9.05734812,123.51,123.45,3.32009405]
[1769662459350,9.06795054,123.5,123.45,3.32009405]
[1769662460251,1.77924759,123.48,123.43,3.32009405]
[1769662464358,1.8181448,123.47,123.43,3.32009405]
[1769662468862,1.86638659,123.49,123.43,3.32009405]
[1769662470061,1.86638659,123.49,123.44,3.46226212]
[1769662479277,9.16568659,123.49,123.44,3.46226212]
[1769662481376,1.86638659,123.49,123.44,3.46226212]
[1769662482075,7.2987,123.5,123.45,3.46226212]
[1769662483982,9.29607759,123.5,123.45,3.46226212]
[1769662497290,1.99737759,123.5,123.45,3.46226212]
[1769662508795,1.99737759,123.5,123.43,3.61531019]
[1769662510301,9.47444026,123.49,123.43,3.61531019]
[1769662510806,9.47444026,123.49,123.44,3.61531019]
[1769662539738,2.31321017,123.48,123.42,3.05726018]
[1769662539943,2.31321017,123.48,123.38,113.6435]
[1769662540746,5.30847741,123.46,123.4,7.3046]
[1769662541648,5.30847741,123.46,123.41,7.304]
[1769662541947,5.30847741,123.46,123.41,10.82706958]
[1769662543553,5.30847741,123.46,123.42,3.52306958]
[1769662547859,12.60957741,123.46,123.42,3.52306958]
[1769662551759,12.60957741,123.46,123.4,10.82746958]
[1769662551956,12.60957741,123.46,123.41,3.52306958]
[1769662552156,10.08494658,123.46,123.41,3.52306958]
[1769662566166,2.78384658,123.46,123.41,3.52306958]
[1769662566471,2.78384658,123.46,123.41,13.35170041]
[1769662569466,2.78384658,123.46,123.42,2.52463083]
[1769662571066,2.78384658,123.46,123.42,6.23163141]
[1769662571670,2.78384658,123.46,123.42,6.23064387]
[1769662573171,2.91720454,123.48,123.43,6.23064387]
[1769662574470,2.91720454,123.48,123.43,13.53344387]
[1769662583275,2.91720454,123.48,123.43,6.23064387]
[1769662584378,2.91720454,123.48,123.43,3.70700058]
[1769662584975,10.49611139,123.48,123.43,3.70700058]
[1769662585180,17.79651139,123.48,123.43,3.70700058]
[1769662586073,10.21760454,123.48,123.43,3.70700058]
[1769662586274,12.74124783,123.48,123.43,3.70700058]
[1769662588578,20.32015468,123.48,123.43,3.70700058]
[1769662589279,2.96923794,123.47,123.43,3.70700058]
[1769662603308,14.87930685,123.48,123.44,3.72525544]
[1769662603509,7.3004,123.48,123.44,3.72525544]
[1769662603704,7.3004,123.48,123.44,6.24889873]
[1769662604409,7.3004,123.48,123.44,3.72525544]
[1769662607707,10.3150543,123.48,123.42,6.24889873]
[1769662607909,5.53829759,123.47,123.42,3.72525544]
[1769662608117,5.53829759,123.46,123.4,3.72525544]
[1769662608308,7.3023,123.44,123.4,3.72525544]
[1769662608813,5.53829759,123.46,123.4,3.72525544]
[1769662609014,2.52364329,123.45,123.4,3.72525544]
[1769662610206,9.82604329,123.44,123.4,3.72525544]
[1769662615516,2.52364329,123.43,123.4,3.72525544]
[1769662618517,9.82604329,123.44,123.4,3.72525544]
[1769662621620,12.87392295,123.44,123.4,3.72525544]
[1769662623222,2.52364329,123.43,123.4,3.72525544]
[1769662623625,2.52364329,123.42,123.38,3.94062845]
[1769662627532,12.87797466,123.43,123.38,3.94062845]
[1769662631624,12.88024624,123.43,123.38,3.94062845]
[1769662632130,3.066454,123.42,123.37,191.55169664]
[1769662632434,2.52591487,123.4,123.36,3.94062845]
[1769662633127,5.59396596,123.4,123.36,3.94062845]
[1769662633323,5.59396596,123.4,123.34,3.94062845]
[1769662633324,2.52591487,123.39,123.34,3.94062845]
[1769662633726,9.83121487,123.39,123.34,3.94062845]
[1769662634126,7.3053,123.39,123.34,3.94062845]
[1769662638930,5.59396596,123.4,123.33,9.83441487]
[1769662638931,12.90762013,123.38,123.33,3.94062845]
[1769662639838,10.38170526,123.38,123.33,3.94062845]
[1769662640534,12.90762013,123.38,123.33,3.94062845]
[1769662644344,10.38170526,123.38,123.33,3.94062845]
[1769662645746,3.09301953,123.37,123.33,3.94062845]
[1769662646339,3.09301953,123.37,123.33,6.46654332]
[1769662647138,7.3052,123.39,123.33,6.46654332]
[1769662647347,7.3052,123.39,123.34,2.52591487]
[1769662647544,7.3046,123.41,123.34,6.55051948]
[1769662647737,2.52591487,123.41,123.34,6.55051948]
[1769662648738,7.3046,123.4,123.34,6.55051948]
[1769662649145,0.0240519,123.39,123.34,6.55051948]
[1769662653045,0.0240519,123.39,123.35,4.02460461]
[1769662657251,6.01564227,123.39,123.35,4.02460461]
[1769662658551,2.52591487,123.41,123.36,4.02460461]
[1769662658754,5.99239355,123.41,123.36,6.55051948]
[1769662660858,0.11566104,123.44,123.38,6.55051948]
[1769662661250,2.64157591,123.44,123.38,6.55051948]
[1769662662357,9.94387591,123.44,123.38,6.55051948]
[1769662665061,9.94387591,123.44,123.38,4.02460461]
[1769662665262,3.81350424,123.43,123.38,4.02460461]
[1769662665554,42.33453468,123.49,123.42,2.52591487]
[1769662665761,34.75562783,123.49,123.43,2.52591487]
[1769662665949,34.75562783,123.49,123.44,2.52591487]
[1769662666350,34.75562783,123.49,123.43,2.52591487]
[1769662668961,9.82471487,123.5,123.43,2.52591487]
[1769662669168,44.5803427,123.5,123.43,2.52591487]
[1769662669470,2.52591487,123.48,123.42,7.3031]
[1769662672071,2.52591487,123.47,123.42,7.3031]
[1769662675966,2.52591487,123.45,123.42,7.3031]
[1769662676160,2.52591487,123.45,123.38,113.6414]
[1769662676361,2.52591487,123.44,123.38,439.72731487]
[1769662676765,2.52591487,123.43,123.39,7.3047]
[1769662676960,2.52591487,123.42,123.39,7.3047]
[1769662677773,2.52591487,123.43,123.39,7.3047]
[1769662681570,113.5475,123.49,123.37,7.3058]
[1769662681571,2.52591487,123.41,123.37,7.3058]
[1769662682184,37.2815427,123.42,123.37,7.3058]
[1769662684489,34.75562783,123.42,123.37,7.3058]
[1769662689874,37.2815427,123.42,123.37,7.3058]
[1769662693288,37.2815427,123.44,123.37,2.52591487]
[1769662693689,37.28074602,123.44,123.37,2.52511819]
[1769662694391,37.28074602,123.44,123.39,7.3049]
[1769662694790,2.52511819,123.43,123.39,7.3049]
[1769662697794,37.28074602,123.44,123.4,7.3044]
[1769662707198,37.28074602,123.44,123.37,116.17721819]
[1769662707199,37.28074602,123.44,123.41,7.3039]
[1769662708699,34.75562783,123.44,123.41,7.3039]
[1769662724518,34.75562783,123.44,123.39,7.3047]
[1769662726419,34.75562783,123.46,123.39,116.16181819]
[1769662726618,34.75562783,123.46,123.4,2.52511819]
[1769662727317,34.75562783,123.46,123.42,7.3034]
[1769662727713,37.28074602,123.46,123.42,7.3034]
[1769662741223,37.28074602,123.44,123.4,7.3041]
[1769662742835,34.75562783,123.44,123.4,7.3041]
[1769662760439,37.28027079,123.44,123.38,7.3052]
[1769662760641,34.75562783,123.42,123.38,7.3052]
[1769662760845,34.75562783,123.42,123.38,330.8452]
[1769662799281,2.52464296,123.44,123.38,330.8452]
[1769662799579,37.28027079,123.44,123.38,330.8452]
[1769662802776,37.28027079,123.42,123.37,323.58]
[1769662803886,6.03574695,123.41,123.37,323.58]
[1769662804080,34.75562783,123.42,123.37,323.58]
[1769662804283,34.75562783,123.42,123.37,330.8864]
[1769662805186,6.0370673,123.41,123.37,330.8864]
[1769662805386,34.75562783,123.42,123.37,330.8864]
[1769662807286,6.03532316,123.41,123.37,330.8864]
[1769662807492,34.75562783,123.42,123.37,330.8864]
[1769662807683,6.03532502,123.41,123.37,330.8864]
[1769662807982,34.75562783,123.42,123.37,330.8864]
[1769662808575,6.03473977,123.41,123.37,330.8864]
[1769662808786,34.75562783,123.42,123.37,330.8864]
[1769662808983,6.03473977,123.41,123.37,330.8864]
[1769662809175,34.75562783,123.42,123.37,330.8864]
[1769662810478,37.28027079,123.42,123.37,7.3064]
[1769662810681,37.28027079,123.4,123.33,116.20924296]
[1769662811082,37.28027079,123.4,123.34,323.6]
[1769662811479,37.28027079,123.38,123.34,323.6]
[1769662811684,34.75562783,123.38,123.34,323.6]
[1769662811889,37.28027079,123.39,123.34,323.6]
[1769662812082,6.03337055,123.38,123.34,323.6]
[1769662812282,37.28027079,123.39,123.34,323.6]
[1769662812483,6.02859961,123.38,123.34,323.6]
[1769662813487,37.28027079,123.39,123.34,330.9081]
[1769662815789,34.75562783,123.39,123.34,330.9081]
[1769662820996,37.28258607,123.41,123.35,9.83435824]
[1769662823700,37.28258607,123.41,123.35,7.3074]
[1769662825092,34.75562783,123.43,123.37,9.83325824]
[1769662825305,34.75562783,123.43,123.39,2.52695824]
[1769662825595,34.75562783,123.43,123.4,9.83155824]
[1769662832599,34.75562783,123.43,123.4,7.3046]
[1769662832997,34.75562783,123.45,123.4,7.3046]
[1769662833898,34.75562783,123.45,123.4,9.83155824]
[1769662834699,34.75562783,123.45,123.4,7.3046]
[1769662843403,34.75562783,123.45,123.41,7.304]
[1769662848018,37.28258607,123.45,123.41,7.304]
[1769662858425,34.75562783,123.45,123.42,7.3034]
[1769662858625,37.28258607,123.45,123.42,7.3034]
[1769662858826,37.28258607,123.45,123.39,2.52695824]
[1769662860329,37.28258607,123.45,123.41,7.304]
[1769662860530,37.28258607,123.47,123.4,116.15265824]
[1769662861432,37.28258607,123.47,123.43,7.3027]
[1769662862140,34.75562783,123.47,123.44,7.3022]
[1769662862927,34.75562783,123.49,123.45,7.3016]
[1769662863127,34.75562783,123.51,123.45,2.52695824]
[1769662864426,34.75562783,123.51,123.47,2.52695824]
[1769662864821,34.75562783,123.51,123.47,7.3004]
[1769662870029,7.57890685,123.54,123.44,113.5888]
[1769662870030,34.75562783,123.49,123.44,113.5888]
[1769662870642,37.28258607,123.49,123.43,116.12505824]
[1769662870939,37.28258607,123.49,123.43,113.5981]
[1769662871740,37.28258607,123.49,123.46,7.301]
[1769662872341,34.75562783,123.49,123.46,7.301]
[1769662875041,34.75562783,123.49,123.43,116.12505824]
[1769662875432,37.28258607,123.51,123.43,113.5981]
[1769662875637,37.28258607,123.5,123.44,2.52695824]
[1769662875837,34.75562783,123.5,123.44,2.52695824]
[1769662876436,34.75562783,123.5,123.46,7.301]
[1769662879540,34.75562783,123.52,123.46,113.5693]
[1769662879743,34.75562783,123.56,123.5,2.5223769]
[1769662879944,34.75562783,123.55,123.5,2.5223769]
[1769662881440,34.75562783,123.55,123.5,9.8209769]
[1769662885348,34.75562783,123.55,123.5,7.2986]
[1769662885550,31.27615202,123.53,123.47,116.0830769]
[1769662886452,248.8565521,123.59,123.52,2.5223769]
[1769662886652,5.98993269,123.58,123.52,2.5223769]
[1769662887450,5.98993269,123.58,123.52,9.8197769]
[1769662887654,243.70993269,123.58,123.52,9.8197769]
[1769662887950,243.70993269,123.58,123.52,2.5223769]
[1769662887951,5.98993269,123.57,123.52,2.5223769]
[1769662888148,5.98993269,123.57,123.53,7.2969]
[1769662888455,24.86705202,123.56,123.53,7.2969]
[1769662890746,24.86705202,123.56,123.53,9.8192769]
[1769662893755,239.88,123.55,123.53,9.8192769]
[1769662894244,102.96520832,123.55,123.53,7.2969]
[1769662895557,24.86705202,123.56,123.53,7.2969]
[1769662895756,265.10705202,123.56,123.54,2.5223769]
[1769662895964,24.86705202,123.56,123.53,7.2969]
[1769662896259,265.12705202,123.56,123.53,7.2969]
[1769662896848,24.86705202,123.56,123.53,7.2969]
[1769662897158,265.36705202,123.56,123.53,9.8192769]
[1769662897358,265.36705202,123.56,123.53,7.2969]
[1769662898161,24.86705202,123.56,123.53,7.2969]
[1769662898356,265.68705202,123.56,123.53,7.2969]
[1769662900364,265.68705202,123.56,123.5,116.0561769]
[1769662900558,24.86705202,123.55,123.5,116.0561769]
[1769662901459,24.86705202,123.55,123.52,7.297]
[1769662902161,0.47305202,123.55,123.52,7.297]
[1769662902457,5.202e-05,123.55,123.52,7.297]
[1769662902661,5.202e-05,123.55,123.53,7.2968]
[1769662903559,189.0722,123.54,123.53,7.2968]
[1769662903764,153.4478,123.54,123.53,7.2968]
[1769662903963,117.30739452,123.54,123.53,7.2968]
[1769662904150,63.15109452,123.54,123.53,7.2968]
[1769662904355,44.50329452,123.54,123.53,7.2968]
[1769662904559,4.654e-05,123.55,123.53,7.2968]
[1769662906260,8.9941752,123.59,123.53,7.2968]
[1769662906461,8.9941752,123.59,123.53,2.5223769]
[1769662906762,21.42772448,123.59,123.53,2.5223769]
[1769662906964,264.82772448,123.59,123.53,2.5223769]
[1769662907162,21.42772448,123.59,123.55,7.2957]
[1769662907352,23.95010138,123.59,123.55,7.2957]
[1769662908252,11.5165521,123.59,123.56,7.2951]
[1769662913870,8.9941752,123.59,123.56,7.2951]
[1769662914070,7.52e-05,123.59,123.56,7.2951]
[1769662915367,245.66,123.62,123.53,116.0303769]
[1769662915368,12.43354928,123.62,123.53,116.0303769]
[1769662915570,14.95592618,123.63,123.56,2.5223769]
[1769662916167,14.95592618,123.62,123.58,7.2937]
[1769662916369,12.43354928,123.62,123.58,7.2937]
[1769662916564,14.95592618,123.62,123.58,7.2937]
[1769662916967,2.5223769,123.61,123.58,7.2937]
[1769662917267,2.5223769,123.61,123.56,7.2948]
[1769662917468,2.5223769,123.6,123.56,7.2948]
[1769662918268,7.69e-05,123.6,123.56,7.2948]
[1769662919063,2.5223769,123.61,123.56,7.2948]
[1769662919262,2.5223769,123.6,123.56,7.2948]
[1769662919464,2.5223769,123.6,123.56,7.32087191]
[1769662919864,2.5223769,123.59,123.56,7.2948]
[1769662920070,2.5223769,123.59,123.55,0.02607191]
[1769662920258,12.43354928,123.6,123.55,0.02607191]
[1769662920459,14.95592618,123.6,123.55,0.02607191]
[1769662921075,2.5223769,123.59,123.55,7.32167191]
[1769662922871,12.43354928,123.58,123.53,0.256991]
[1769662923079,14.95592618,123.58,123.53,0.256991]
[1769662923373,14.95592618,123.58,123.54,7.2963]
[1769662923563,2.5223769,123.58,123.54,7.62848653]
[1769662924267,2.5223769,123.59,123.54,7.62848653]
[1769662925068,12.43354928,123.6,123.55,7.77517641]
[1769662925774,14.95592618,123.6,123.55,7.77517641]
[1769662927070,12.43354928,123.6,123.55,7.77517641]
[1769662927271,2.5223769,123.6,123.56,0.69879749]
[1769662927568,18.40594605,123.61,123.56,0.69879749]
[1769662927773,14.95592618,123.61,123.56,0.69879749]
[1769662928575,19.72464928,123.63,123.56,0.69879749]
[1769662928775,2.5223769,123.61,123.56,0.69879749]
[1769662929367,2.5223769,123.61,123.56,7.99389749]
[1769662929768,14.95592618,123.62,123.56,7.99389749]
[1769662930163,12.43354928,123.64,123.58,0.90662099]
[1769662930370,5.97185473,123.63,123.58,0.90662099]
[1769662930566,14.95592618,123.64,123.58,0.90662099]
[1769662930872,8.4940158,123.63,123.58,0.90662099]
[1769662931075,2.5223769,123.63,123.58,0.90662099]
[1769662931372,2.5223769,123.63,123.58,8.20052099]
[1769662932374,8.49342974,123.63,123.58,8.20052099]
[1769662932566,2.5223769,123.63,123.58,8.20052099]
[1769662937181,12.43354928,123.64,123.58,8.20052099]
[1769662937380,14.95592618,123.64,123.58,8.20052099]
[1769662937680,2.5223769,123.64,123.6,1.427043]
[1769662939473,8.49167758,123.65,123.6,1.427043]
[1769662939779,2.51605351,123.67,123.61,1.54968111]
[1769662939979,5.96813727,123.67,123.64,2.51605351]
[1769662940383,18.40168655,123.67,123.64,2.51605351]
[1769662940680,12.43354928,123.67,123.64,2.51605351]
[1769662950289,12.43354928,123.67,123.62,1.84421497]
[1769662950489,12.43354928,123.67,123.64,2.51605351]
[1769662953192,12.58192943,123.66,123.59,2.37198808]
[1769662953592,12.58192943,123.66,123.63,2.51605351]
[1769662956289,7.2879,123.69,123.64,2.51605351]
[1769662956495,5.96673063,123.68,123.64,2.51605351]
[1769662956887,7.2879,123.69,123.64,2.51605351]
[1769662958195,19.87002943,123.68,123.64,2.51605351]
[1769662960698,7.2873,123.7,123.66,2.51605351]
[1769662962093,113.3152,123.75,123.68,2.51605351]
[1769662962298,5.96252149,123.74,123.71,5.351e-05]
[1769662962693,12.58192943,123.73,123.71,5.351e-05]
[1769662963391,19.86722943,123.73,123.71,5.351e-05]
[1769662966298,12.58192943,123.72,123.71,5.351e-05]
[1769662966496,7.2853,123.73,123.71,5.351e-05]
[1769662968193,7.2853,123.73,123.68,12.86034994]
[1769662968393,7.2853,123.73,123.7,5.351e-05]
[1769662968894,18.02949266,123.73,123.7,5.351e-05]
[1769662969097,18.02999266,123.72,123.68,2.51605351]
[1769662970100,10.74419266,123.72,123.68,2.51605351]
[1769662971896,10.74419266,123.72,123.7,2.51605351]
[1769662973705,18.45178905,123.74,123.7,2.51605351]
[1769662975009,11.25697273,123.73,123.7,2.51605351]
[1769662975904,11.41976045,123.75,123.7,2.51605351]
[1769662976402,11.41976045,123.75,123.69,13.46856168]
[1769662976705,11.41976045,123.75,123.71,2.51605351]
[1769662976905,18.70376045,123.75,123.71,2.51605351]
[1769662980408,11.76057145,123.74,123.69,15.98461519]
[1769662981415,11.84334174,123.73,123.68,2.51605351]
[1769662981708,11.84334174,123.73,123.68,15.98461519]
[1769662982810,11.84334174,123.73,123.65,13.46856168]
[1769662983011,5.95934573,123.72,123.65,15.98461519]
[1769662983213,12.00604114,123.71,123.65,15.98461519]
[1769662984313,7.287,123.7,123.65,15.98461519]
[1769662985421,7.287,123.7,123.65,13.46856168]
[1769662985620,12.00604114,123.71,123.67,2.51605351]
[1769662988326,7.2861,123.72,123.67,15.98461519]
[1769662989519,19.83287732,123.72,123.67,13.46856168]
[1769662989816,19.83287732,123.72,123.67,15.98461519]
[1769662990817,12.54677732,123.72,123.67,15.98461519]
[1769662991326,19.97851023,123.74,123.69,2.51605351]
[1769662991524,19.97851023,123.74,123.69,15.98461519]
[1769662991713,19.97731023,123.76,123.71,2.51605351]
[1769662991919,5.96366688,123.75,123.71,2.51605351]
[1769662992120,19.97731023,123.76,123.71,2.51605351]
[1769662994622,19.97731023,123.76,123.71,15.98461519]
[1769662994824,19.97731023,123.76,123.73,2.51605351]
[1769662995024,19.97731023,123.76,123.73,5.351e-05]
[1769662995425,7.2839,123.76,123.73,2.51605351]
[1769662996320,7.2839,123.76,123.73,5.351e-05]
[1769662999519,7.2839,123.76,123.73,2.51088437]
[1769663001528,12.97670525,123.77,123.73,2.51088437]
[1769663003426,20.25950525,123.77,123.73,2.51088437]
[1769663004330,20.85042171,123.79,123.73,15.97944605]
[1769663004532,5.97060803,123.78,123.75,2.51088437]
[1769663005033,13.56822171,123.78,123.75,2.51088437]
[1769663005333,20.85042171,123.78,123.75,2.51088437]
[1769663005929,13.56822171,123.78,123.75,2.51088437]
[1769663006524,13.73128573,123.8,123.75,2.51088437]
[1769663006729,5.97087328,123.79,123.75,17.47423146]
[1769663006930,13.73128573,123.8,123.75,17.47423146]
[1769663007128,13.73128573,123.8,123.75,14.96334709]
[1769663007327,21.01228573,123.8,123.75,14.96334709]
[1769663007630,21.01228573,123.8,123.75,17.47423146]
[1769663009025,13.85031031,123.82,123.75,17.47423146]
[1769663009230,5.96671282,123.81,123.77,2.51088437]
[1769663010829,13.24721282,123.81,123.77,2.51088437]
[1769663011034,7.2805,123.81,123.77,2.51088437]
[1769663011239,21.31880467,123.81,123.77,2.51088437]
[1769663011832,14.09482697,123.8,123.77,2.51088437]
[1769663012038,14.09482697,123.8,123.73,15.22635852]
[1769663012439,16.60571134,123.8,123.73,17.73724289]
[1769663012631,20.11171234,123.79,123.73,17.73724289]
[1769663012937,14.15070005,123.79,123.73,17.73724289]
[1769663013326,21.43230005,123.79,123.73,17.73724289]
[1769663014230,7.2822,123.78,123.73,17.73724289]
[1769663014934,7.2822,123.78,123.73,15.22635852]
[1769663015133,7.2822,123.78,123.73,17.73724289]
[1769663015335,7.2822,123.78,123.73,15.22635852]
[1769663016033,7.2822,123.78,123.73,17.73724289]
[1769663016234,7.2822,123.78,123.74,2.51088437]
[1769663016938,7.2822,123.78,123.73,17.73724289]
[1769663019443,7.2822,123.78,123.73,15.22635852]
[1769663021039,7.2822,123.78,123.73,17.73724289]
[1769663022739,14.15070005,123.79,123.73,17.73724289]
[1769663023230,115.76618437,123.81,123.74,17.73724289]
[1769663023544,7.2816,123.79,123.74,17.73724289]
[1769663024645,7.2816,123.79,123.7,303.42]
[1769663024646,14.77316884,123.82,123.76,17.73724289]
[1769663026351,22.05296884,123.82,123.76,17.73724289]
[1769663026538,14.80475129,123.84,123.79,2.51088437]
[1769663028133,14.80475129,123.82,123.75,15.22635852]
[1769663028437,14.80475129,123.8,123.73,17.73724289]
[1769663028639,22.08635129,123.79,123.73,15.22635852]
[1769663029141,14.80475129,123.79,123.74,17.73724289]
[1769663029342,14.80475129,123.79,123.74,15.22635852]
[1769663029739,22.08635129,123.79,123.74,15.22635852]
[1769663029947,17.31563566,123.79,123.74,15.22635852]
[1769663030142,7.2822,123.78,123.74,15.22635852]
[1769663031239,14.80475129,123.79,123.74,15.22635852]
[1769663031744,14.80475129,123.79,123.74,17.73724289]
[1769663032343,22.08645129,123.79,123.74,17.73724289]
[1769663034853,22.08645129,123.79,123.74,15.22635852]
[1769663035054,22.08645129,123.79,123.74,17.73724289]
[1769663035348,22.08645129,123.79,123.74,15.22635852]
[1769663039250,24.8062797,123.81,123.74,17.73724289]
[1769663039450,5.98893944,123.8,123.74,17.73724289]
[1769663039652,5.98893944,123.79,123.74,17.73724289]
[1769663039844,24.8062797,123.81,123.74,25.02164289]
[1769663040047,24.8062797,123.81,123.75,15.63813891]
[1769663040048,5.98865837,123.8,123.75,15.63813891]
[1769663040243,5.98865837,123.79,123.75,15.63813891]
[1769663041344,21.0031537,123.78,123.73,15.63813891]
[1769663041546,15.01449533,123.78,123.73,15.63813891]
[1769663041846,15.01449533,123.76,123.71,15.63813891]
[1769663042148,15.01449533,123.76,123.7,2.51088437]
[1769663042751,15.01449533,123.76,123.7,25.43572328]
[1769663043445,15.01449533,123.76,123.71,25.43532328]
[1769663043648,15.01449533,123.76,123.68,436.0483]
[1769663043649,15.01449533,123.78,123.72,18.14902328]
[1769663043846,5.99066333,123.77,123.72,18.14902328]
[1769663045652,15.01449533,123.8,123.74,18.14902328]
[1769663045849,5.99104839,123.79,123.74,18.14902328]
[1769663046056,15.01449533,123.8,123.74,18.14902328]
[1769663046254,5.99104655,123.79,123.74,18.14902328]
[1769663047253,5.99104655,123.79,123.74,15.63813891]
[1769663047454,5.99104655,123.79,123.74,18.14902328]
[1769663047652,5.99104655,123.79,123.74,15.63813891]
[1769663047861,5.99104655,123.78,123.74,15.63813891]
[1769663052149,5.99104655,123.78,123.74,18.14902328]
[1769663052958,25.06658322,123.81,123.74,18.14902328]
[1769663053255,5.99448221,123.8,123.74,18.14902328]
[1769663053558,5.99448221,123.79,123.74,18.14902328]
[1769663054057,7.281,123.8,123.74,18.14902328]
[1769663054256,5.99427374,123.79,123.74,18.14902328]
[1769663054459,5.99441615,123.78,123.74,15.63813891]
[1769663054653,5.99441615,123.77,123.74,15.63813891]
[1769663054956,17.5253797,123.79,123.74,15.63813891]
[1769663055155,5.99498908,123.78,123.74,15.63813891]
[1769663055352,5.99498908,123.77,123.74,15.63813891]
[1769663055558,17.5253797,123.79,123.74,15.63813891]
[1769663055858,5.99518166,123.78,123.74,15.63813891]
[1769663056159,5.99518166,123.77,123.74,15.63813891]
[1769663056349,17.5253797,123.79,123.74,15.63813891]
[1769663056555,5.99541255,123.78,123.74,15.63813891]
[1769663056754,5.99541255,123.77,123.74,15.63813891]
[1769663056954,15.01449533,123.79,123.74,15.63813891]
[1769663057157,5.99541255,123.78,123.74,15.63813891]
[1769663057357,5.99541255,123.77,123.74,15.63813891]
[1769663057552,24.8070797,123.79,123.74,15.63813891]
[1769663057753,15.01449533,123.77,123.72,15.63813891]
[1769663057952,5.99536427,123.76,123.72,15.63813891]
[1769663058255,23.52074397,123.76,123.7,15.63813891]
[1769663058455,17.5253797,123.76,123.7,15.63813891]
[1769663059354,24.8087797,123.76,123.7,15.63813891]
[1769663059560,15.01449533,123.76,123.7,18.15008747]
[1769663060655,15.01449533,123.76,123.7,15.63813891]
[1769663062262,17.52644389,123.76,123.7,15.63813891]
[1769663062460,17.52644389,123.76,123.7,18.15008747]
[1769663062962,24.80984389,123.76,123.7,18.15008747]
[1769663064160,24.80984389,123.76,123.7,15.63813891]
[1769663065961,31.25156305,123.75,123.7,15.63813891]
[1769663066157,31.25156305,123.75,123.68,321.87846426]
[1769663066158,21.45604872,123.74,123.68,321.87846426]
[1769663066353,15.4636828,123.74,123.69,16.8265157]
[1769663066761,15.4636828,123.74,123.69,19.33846426]
[1769663067654,17.97563136,123.74,123.68,302.54]